fUST/lending_fUST_20250723
["ID","MTS","AMOUNT","RATE_DAILY","PERIOD"]
[374345494,1753277448376,-460.0,0.0002,2]
[374345496,1753277448386,-460.0,0.0002,2]
[374345498,1753277448395,-693.97,0.0002,2]
[374345500,1753277448404,-2154.81861453,0.0002,2]
[374345502,1753277448414,-3196.09786644,0.0002,2]
[374345504,1753277448423,-362.89968044,0.0002,2]
[374345506,1753277448433,-498.27,0.0002,2]
[374345508,1753277448442,-678.85,0.0002,2]
[374345509,1753277448452,-460.0,0.0002,2]
[374345511,1753277448466,-37620.25626344,0.0002,2]
[374345528,1753277448476,-460.0,0.0002,2]
[374345530,1753277448638,-460.0,0.0002,2]
[374345532,1753277448648,-994.99,0.0002,2]
[374345534,1753277448658,-2634.88,0.0002,2]
[374345536,1753277448669,-460.0,0.0002,2]
[374345538,1753277448679,-460.0,0.0002,2]
[374345540,1753277448688,-460.0,0.0002,2]
[374345542,1753277448698,-882.33,0.0002,2]
[374345544,1753277448711,-460.0,0.0002,2]
[374345546,1753277448721,-460.0,0.0002,2]
[374345548,1753277448731,-3736.65,0.0002,2]
[374345550,1753277448741,-269.05320935,0.0002,2]
[374345551,1753277448751,-460.0,0.0002,2]
[374345553,1753277448760,-460.0,0.0002,2]
[374345555,1753277448770,-460.0,0.0002,2]
[374345557,1753277448780,-552.07,0.0002,2]
[374345559,1753277448790,-460.0,0.0002,2]
[374345561,1753277448800,-463.35827673,0.0002,2]
[374345563,1753277448810,-460.0,0.0002,2]
[374345565,1753277448820,-460.0,0.0002,2]
[374345567,1753277448829,-473.03,0.0002,2]
[374345569,1753277448839,-806.77,0.0002,2]
[374345571,1753277448848,-460.0,0.0002,2]
[374345573,1753277448857,-585.2,0.0002,2]
[374345575,1753277448867,-460.0,0.0002,2]
[374345576,1753277448877,-829.18,0.0002,2]
[374345578,1753277448887,-530.39,0.0002,2]
[374345580,1753277448896,-460.0,0.0002,2]
[374345582,1753277448905,-1146.87,0.0002,2]
[374345584,1753277448915,-460.0,0.0002,2]
[374345586,1753277448925,-780.73,0.0002,2]
[374345588,1753277448934,-622.75820574,0.00020021,2]
[374345590,1753277448943,-1000.0,0.00020021,2]
[374345592,1753277448953,-1000.0,0.00020021,2]
[374345594,1753277448965,-449.876196,0.00020187,2]
[374345596,1753277448975,-460.0,0.00020273,2]
[374345597,1753277448984,-460.0,0.00020273,2]
[374345599,1753277448993,-460.0,0.00020273,2]
[374345601,1753277449002,-6058.28,0.00020273,2]
[374345603,1753277449012,-1788.13,0.00020273,2]
[374345605,1753277449022,-460.0,0.00020273,2]
[374345607,1753277449032,-460.0,0.00020273,2]
[374345609,1753277449042,-1284.72,0.00020273,2]
[374345611,1753277449053,-460.0,0.00020273,2]
[374345613,1753277449063,-4882.4,0.00020273,2]
[374345615,1753277449073,-460.0,0.00020273,2]
[374345616,1753277449083,-460.0,0.00020273,2]
[374345618,1753277449095,-2708.0,0.00020273,2]
[374345620,1753277449106,-460.0,0.00020273,2]
[374345622,1753277449117,-460.0,0.00020273,2]
[374345624,1753277449128,-4459.31,0.00020273,2]
[374345626,1753277449139,-460.0,0.00020273,2]
[374345628,1753277449150,-490.97,0.00020273,2]
[374345630,1753277449162,-460.0,0.00020273,2]
[374345632,1753277449173,-460.0,0.00020273,2]
[374345634,1753277449183,-460.0,0.00020273,2]
[374345636,1753277449193,-2310.57,0.00020273,2]
[374345638,1753277449204,-460.0,0.00020273,2]
[374345639,1753277449224,-460.0,0.00020273,2]
[374345641,1753277449235,-458.93393877,0.00020273,2]
[374345643,1753277449245,-460.0,0.00020273,2]
[374345645,1753277449256,-460.0,0.00020273,2]
[374345647,1753277449270,-464.15,0.00020273,2]
[374345649,1753277449288,-460.0,0.00020273,2]
[374345651,1753277449298,-460.0,0.00020273,2]
[374345653,1753277449309,-460.0,0.00020273,2]
[374345655,1753277449320,-460.0,0.00020273,2]
[374345657,1753277449331,-460.0,0.00020273,2]
[374345659,1753277449342,-460.0,0.00020273,2]
[374345661,1753277449352,-460.0,0.00020273,2]
[374345663,1753277449363,-328.56106037,0.00020273,2]
[374345665,1753277449373,-460.0,0.00020273,2]
[374345666,1753277449385,-8680.08,0.00020273,2]
[374345668,1753277449396,-460.0,0.00020273,2]
[374345670,1753277449406,-460.0,0.00020273,2]
[374345672,1753277449416,-460.0,0.00020273,2]
[374345674,1753277449425,-460.0,0.00020273,2]
[374345676,1753277449435,-3736.75,0.00020273,2]
[374345678,1753277449444,-612.28,0.00020273,2]
[374345680,1753277449453,-460.0,0.00020273,2]
[374345682,1753277449470,-460.0,0.00020273,2]
[374345684,1753277449479,-615.76,0.00020273,2]
[374345686,1753277449489,-2163.7,0.00020273,2]
[374345687,1753277449498,-2057.8,0.00020273,2]
[374345689,1753277449508,-519.30453808,0.00020273,2]
[374345691,1753277449517,-460.0,0.00020273,2]
[374345693,1753277449526,-460.0,0.00020273,2]
[374345695,1753277449536,-693.97,0.00020273,2]
[374345697,1753277449545,-498.27,0.00020273,2]
[374345699,1753277449555,-678.85,0.00020273,2]
[374345701,1753277449565,-460.0,0.00020273,2]
[374345703,1753277449574,-994.99,0.00020273,2]
[374345705,1753277449584,-2634.88,0.00020273,2]
[374345706,1753277449593,-460.0,0.00020273,2]
[374345708,1753277449602,-460.0,0.00020273,2]
[374345710,1753277449612,-460.0,0.00020273,2]
[374345712,1753277449621,-882.33,0.00020273,2]
[374345714,1753277449631,-460.0,0.00020273,2]
[374345716,1753277449641,-460.0,0.00020273,2]
[374345718,1753277449650,-3736.65,0.00020273,2]
[374345720,1753277449660,-460.0,0.00020273,2]
[374345722,1753277449669,-460.0,0.00020273,2]
[374345724,1753277449679,-552.07,0.00020273,2]
[374345726,1753277449688,-460.0,0.00020273,2]
[374345727,1753277449697,-460.0,0.00020273,2]
[374345729,1753277449711,-460.0,0.00020273,2]
[374345731,1753277449720,-473.03,0.00020273,2]
[374345733,1753277449730,-806.77,0.00020273,2]
[374345735,1753277449740,-585.2,0.00020273,2]
[374345737,1753277449749,-460.0,0.00020273,2]
[374345739,1753277449758,-829.18,0.00020273,2]
[374345741,1753277449767,-530.39,0.00020273,2]
[374345743,1753277449776,-460.0,0.00020273,2]
[374345744,1753277449786,-1146.87,0.00020273,2]
[374345745,1753277449796,-460.0,0.00020273,2]
[374345746,1753277449805,-780.73,0.00020273,2]
[374345747,1753277449815,-160.0,0.00020286,2]
[374345748,1753277449825,-571.0935272,0.000204,2]
[374345749,1753277449834,-214.67886746,0.00020521,2]
[374345750,1753277449843,-476.696448,0.00020521,2]
[374345751,1753277449853,-12622.36869388,0.00020521,2]
[374345752,1753277449863,-160.0,0.00020521,2]
[374345753,1753277449872,-160.0,0.00020521,2]
[374345754,1753277449882,-160.0,0.00020521,2]
[374345755,1753277449892,-160.0,0.00020521,2]
[374345756,1753277449901,-160.0,0.00020521,2]
[374345757,1753277449911,-231.11583447,0.00020521,2]
[374345758,1753277449920,-160.0,0.00020521,2]
[374345759,1753277449930,-215.84326551,0.00020521,2]
[374345760,1753277449940,-160.0,0.00020521,2]
[374345761,1753277449949,-840.06856235,0.00020521,2]
[374345762,1753277449963,-160.0,0.00020521,2]
[374345763,1753277449972,-526.15909479,0.00020521,2]
[374345764,1753277449982,-160.0,0.00020522,2]
[374345765,1753277449991,-1791.22,0.00020538,3]
[374345766,1753277450001,-895.6,0.00020538,3]
[374345767,1753277450011,-447.8,0.00020538,3]
[374345768,1753277450020,-460.0,0.00020547,2]
[374345769,1753277450029,-460.0,0.00020547,2]
[374345770,1753277450039,-158.691522,0.00020547,2]
[374345771,1753277450049,-158.691522,0.00020547,2]
[374345772,1753277450059,-460.0,0.00020547,2]
[374345773,1753277450068,-6058.28,0.00020547,2]
[374345774,1753277450077,-325.310964,0.00020547,2]
[374345775,1753277450086,-325.310964,0.00020547,2]
[374345776,1753277450095,-1788.13,0.00020547,2]
[374345777,1753277450105,-460.0,0.00020547,2]
[374345778,1753277450114,-502.49735592,0.00020547,2]
[374345779,1753277450124,-1284.72,0.00020547,2]
[374345780,1753277450134,-460.0,0.00020547,2]
[374345781,1753277450143,-4882.4,0.00020547,2]
[374345782,1753277450153,-460.0,0.00020547,2]
[374345783,1753277450162,-460.0,0.00020547,2]
[374345784,1753277450171,-2708.0,0.00020547,2]
[374345786,1753277450181,-460.0,0.00020547,2]
[374345787,1753277450191,-460.0,0.00020547,2]
[374345789,1753277450201,-4459.31,0.00020547,2]
[374345790,1753277450214,-460.0,0.00020547,2]
[374345792,1753277450224,-490.97,0.00020547,2]
[374345794,1753277450233,-460.0,0.00020547,2]
[374345796,1753277450242,-460.0,0.00020547,2]
[374345798,1753277450252,-460.0,0.00020547,2]
[374345800,1753277450262,-460.0,0.00020547,2]
[374345802,1753277450275,-2310.57,0.00020547,2]
[374345804,1753277450285,-460.0,0.00020547,2]
[374345806,1753277450294,-460.0,0.00020547,2]
[374345808,1753277450304,-460.0,0.00020547,2]
[374345810,1753277450315,-464.86382537,0.00020547,2]
[374345812,1753277450324,-460.0,0.00020547,2]
[374345814,1753277450334,-460.0,0.00020547,2]
[374345816,1753277450344,-460.0,0.00020547,2]
[374345818,1753277450354,-460.0,0.00020547,2]
[374345820,1753277450365,-8680.08,0.00020547,2]
[374345822,1753277450375,-460.0,0.00020547,2]
[374345824,1753277450384,-460.0,0.00020547,2]
[374345826,1753277450394,-460.0,0.00020547,2]
[374345829,1753277450404,-3736.75,0.00020547,2]
[374345830,1753277450413,-612.28,0.00020547,2]
[374345833,1753277450423,-460.0,0.00020547,2]
[374345835,1753277450432,-460.0,0.00020547,2]
[374345836,1753277450442,-615.76,0.00020547,2]
[374345838,1753277450451,-2163.7,0.00020547,2]
[374345841,1753277450463,-2057.8,0.00020547,2]
[374345843,1753277450473,-460.0,0.00020547,2]
[374345845,1753277450483,-460.0,0.00020547,2]
[374345847,1753277450492,-693.97,0.00020547,2]
[374345848,1753277450502,-498.27,0.00020547,2]
[374345850,1753277450512,-678.85,0.00020547,2]
[374345852,1753277450522,-460.0,0.00020547,2]
[374345855,1753277450532,-994.99,0.00020547,2]
[374345856,1753277450542,-2634.88,0.00020547,2]
[374345858,1753277450552,-460.0,0.00020547,2]
[374345860,1753277450561,-460.0,0.00020547,2]
[374345862,1753277450570,-460.0,0.00020547,2]
[374345864,1753277450580,-882.33,0.00020547,2]
[374345866,1753277450589,-460.0,0.00020547,2]
[374345868,1753277450599,-460.0,0.00020547,2]
[374345870,1753277450609,-3736.65,0.00020547,2]
[374345872,1753277450618,-460.0,0.00020547,2]
[374345874,1753277450628,-460.0,0.00020547,2]
[374345876,1753277450637,-460.0,0.00020547,2]
[374345878,1753277450646,-151.68,0.00020547,2]
[374345880,1753277450655,-460.0,0.00020547,2]
[374345882,1753277450665,-473.03,0.00020547,2]
[374345884,1753277450674,-806.77,0.00020547,2]
[374345886,1753277450683,-585.2,0.00020547,2]
[374345888,1753277450693,-829.18,0.00020547,2]
[374345890,1753277450703,-530.39,0.00020547,2]
[374345892,1753277450716,-460.0,0.00020547,2]
[374345894,1753277450726,-1146.87,0.00020547,2]
[374345896,1753277450736,-195.74,0.00020547,2]
[374345899,1753277450745,-780.73,0.00020547,2]
[374345900,1753277450755,-1500.0,0.00020568,2]
[374345902,1753277450765,-1500.0,0.00020568,2]
[374345904,1753277450774,-317.61324502,0.00020639,2]
[374345906,1753277450784,-700.0,0.00020716,2]
[374345908,1753277450793,-875.636,0.00020754,2]
[374345910,1753277450803,-178.72319565,0.00020754,2]
[374345913,1753277450813,-460.0,0.00020821,2]
[374345915,1753277450822,-183.322432,0.00020821,2]
[374345916,1753277450831,-183.322432,0.00020821,2]
[374345918,1753277450841,-460.0,0.00020821,2]
[374345920,1753277450850,-291.7981558,0.00020821,2]
[374345923,1753277450860,-6058.28,0.00020821,2]
[374345924,1753277450869,-151.0,0.00020821,2]
[374345926,1753277450879,-1788.13,0.00020821,2]
[374345928,1753277450888,-460.0,0.00020821,2]
[374345941,1753277451000,-1284.72,0.00020821,2]
[374345943,1753277451012,-151.611884,0.00020821,2]
[374345945,1753277451021,-605.13145932,0.00020821,2]
[374345947,1753277451031,-4882.4,0.00020821,2]
[374345949,1753277451040,-151.0,0.00020821,2]
[374345951,1753277451050,-151.0,0.00020821,2]
[374345953,1753277451059,-460.0,0.00020821,2]
[374345955,1753277451068,-460.0,0.00020821,2]
[374345957,1753277451077,-2708.0,0.00020821,2]
[374345959,1753277451087,-460.0,0.00020821,2]
[374345961,1753277451096,-592.327966,0.00020821,2]
[374345963,1753277451105,-592.327966,0.00020821,2]
[374345965,1753277451115,-460.0,0.00020821,2]
[374345967,1753277451124,-4459.31,0.00020821,2]
[374345969,1753277451134,-460.0,0.00020821,2]
[374345972,1753277451143,-490.97,0.00020821,2]
[374345973,1753277451153,-460.0,0.00020821,2]
[374345975,1753277451162,-460.0,0.00020821,2]
[374345978,1753277451172,-460.0,0.00020821,2]
[374345979,1753277451182,-2310.57,0.00020821,2]
[374345981,1753277451191,-460.0,0.00020821,2]
[374345983,1753277451201,-460.0,0.00020821,2]
[374345986,1753277451214,-5984.392739,0.00020821,2]
[374345988,1753277451223,-5984.392739,0.00020821,2]
[374345990,1753277451233,-460.0,0.00020821,2]
[374345992,1753277451242,-460.0,0.00020821,2]
[374345993,1753277451252,-460.0,0.00020821,2]
[374345995,1753277451262,-460.0,0.00020821,2]
[374345997,1753277451274,-460.0,0.00020821,2]
[374345999,1753277451287,-460.0,0.00020821,2]
[374346001,1753277451297,-8680.08,0.00020821,2]
[374346003,1753277451308,-460.0,0.00020821,2]
[374346005,1753277451319,-460.0,0.00020821,2]
[374346007,1753277451332,-3736.75,0.00020821,2]
[374346009,1753277451342,-612.28,0.00020821,2]
[374346011,1753277451354,-460.0,0.00020821,2]
[374346013,1753277451365,-460.0,0.00020821,2]
[374346015,1753277451375,-615.76,0.00020821,2]
[374346017,1753277451386,-2163.7,0.00020821,2]
[374346019,1753277451395,-2057.8,0.00020821,2]
[374346021,1753277451405,-460.0,0.00020821,2]
[374346023,1753277451414,-460.0,0.00020821,2]
[374346025,1753277451424,-693.97,0.00020821,2]
[374346027,1753277451433,-498.27,0.00020821,2]
[374346029,1753277451443,-678.85,0.00020821,2]
[374346031,1753277451452,-460.0,0.00020821,2]
[374346033,1753277451464,-994.99,0.00020821,2]
[374346035,1753277451473,-2634.88,0.00020821,2]
[374346037,1753277451482,-460.0,0.00020821,2]
[374346039,1753277451491,-460.0,0.00020821,2]
[374346041,1753277451501,-882.33,0.00020821,2]
[374346043,1753277451510,-460.0,0.00020821,2]
[374346045,1753277451520,-460.0,0.00020821,2]
[374346047,1753277451530,-3736.65,0.00020821,2]
[374346049,1753277451539,-460.0,0.00020821,2]
[374346051,1753277451549,-460.0,0.00020821,2]
[374346053,1753277451559,-460.0,0.00020821,2]
[374346055,1753277451568,-460.0,0.00020821,2]
[374346057,1753277451578,-473.03,0.00020821,2]
[374346059,1753277451588,-806.77,0.00020821,2]
[374346061,1753277451597,-585.2,0.00020821,2]
[374346063,1753277451607,-829.18,0.00020821,2]
[374346065,1753277451616,-530.39,0.00020821,2]
[374346067,1753277451625,-460.0,0.00020821,2]
[374346069,1753277451635,-1146.87,0.00020821,2]
[374346071,1753277451644,-260.0,0.00020834,2]
[374346073,1753277451654,-250.12389181,0.000209,2]
[374346075,1753277451663,-151.0,0.000209,3]
[374346077,1753277451673,-429.674968,0.000209,2]
[374346079,1753277451682,-151.0,0.00021,3]
[374346081,1753277451691,-270.26850122,0.00021,2]
[374346083,1753277451700,-679.97430302,0.00021,10]
[374346084,1753277451710,-45540.53078961,0.00021,2]
[374346103,1753277451868,-780.73,0.00020821,2]
[374346105,1753277451878,-2579.67,0.00021,2]
[374346124,1753277452062,-150.0,0.00018528,2]
[374346126,1753277452071,-581.53,0.00019178,2]
[374346128,1753277452081,-400.110718,0.00019452,2]
[374346130,1753277452093,-181.419282,0.00019452,2]
[374346132,1753277452102,-460.0,0.00019726,2]
[374346134,1753277452112,-581.53,0.00019726,2]
[374346136,1753277452121,-246.33296234,0.0002,2]
[374346138,1753277452136,-213.66703766,0.0002,2]
[374346141,1753277452145,-173.57236234,0.00020273,2]
[374346144,1753277452166,-581.53,0.0002,2]
[374346146,1753277452175,-286.42763766,0.00020273,2]
[374346148,1753277452184,-460.0,0.00020547,2]
[374346150,1753277452193,-460.0,0.00020821,2]
[374346152,1753277452203,-3035.06972759,0.00021,2]
[374346180,1753277452482,-1128.35,0.00019178,2]
[374346182,1753277452491,-581.53,0.00020273,2]
[374346184,1753277452500,-581.53,0.00020547,2]
[374346185,1753277452509,-581.53,0.00020821,2]
[374346187,1753277452518,-8552.05999542,0.00021,2]
[374346191,1753277452543,-9561.56706817,0.00021,2]
[374346201,1753277452757,-460.0,0.00019178,2]
[374346202,1753277452767,-460.0,0.00019178,2]
[374346203,1753277452776,-460.0,0.00019452,2]
[374346204,1753277452785,-5731.10241921,0.00021,2]
[374346205,1753277452794,-202.17485828,0.00021,2]
[374346206,1753277452804,-460.0,0.00021095,2]
[374346208,1753277452814,-335.54966154,0.00021095,2]
[374346210,1753277452824,-6058.28,0.00021095,2]
[374346212,1753277452833,-233.196896,0.00021095,2]
[374346214,1753277452843,-233.196896,0.00021095,2]
[374346228,1753277452964,-1788.13,0.00021095,2]
[374346230,1753277452976,-460.0,0.00021095,2]
[374346232,1753277452986,-1284.72,0.00021095,2]
[374346234,1753277452996,-4882.4,0.00021095,2]
[374346236,1753277453005,-460.0,0.00021095,2]
[374346238,1753277453015,-460.0,0.00021095,2]
[374346240,1753277453024,-2708.0,0.00021095,2]
[374346242,1753277453034,-268.80944798,0.00021095,2]
[374346244,1753277453043,-460.0,0.00021095,2]
[374346245,1753277453053,-4459.31,0.00021095,2]
[374346248,1753277453062,-460.0,0.00021095,2]
[374346249,1753277453071,-490.97,0.00021095,2]
[374346251,1753277453081,-460.0,0.00021095,2]
[374346253,1753277453090,-460.0,0.00021095,2]
[374346255,1753277453099,-460.0,0.00021095,2]
[374346257,1753277453108,-460.0,0.00021095,2]
[374346259,1753277453118,-2310.57,0.00021095,2]
[374346261,1753277453127,-460.0,0.00021095,2]
[374346263,1753277453137,-460.0,0.00021095,2]
[374346265,1753277453155,-460.0,0.00021095,2]
[374346267,1753277453169,-460.0,0.00021095,2]
[374346269,1753277453178,-460.0,0.00021095,2]
[374346271,1753277453188,-460.0,0.00021095,2]
[374346273,1753277453198,-460.0,0.00021095,2]
[374346275,1753277453208,-460.0,0.00021095,2]
[374346277,1753277453221,-3736.75,0.00021095,2]
[374346279,1753277453230,-612.28,0.00021095,2]
[374346281,1753277453239,-460.0,0.00021095,2]
[374346283,1753277453248,-460.0,0.00021095,2]
[374346285,1753277453259,-615.76,0.00021095,2]
[374346287,1753277453269,-2163.7,0.00021095,2]
[374346289,1753277453278,-2057.8,0.00021095,2]
[374346291,1753277453291,-460.0,0.00021095,2]
[374346293,1753277453300,-460.0,0.00021095,2]
[374346295,1753277453310,-693.97,0.00021095,2]
[374346297,1753277453320,-498.27,0.00021095,2]
[374346299,1753277453329,-678.85,0.00021095,2]
[374346301,1753277453338,-460.0,0.00021095,2]
[374346303,1753277453347,-994.99,0.00021095,2]
[374346305,1753277453358,-2634.88,0.00021095,2]
[374346307,1753277453368,-460.0,0.00021095,2]
[374346309,1753277453377,-460.0,0.00021095,2]
[374346311,1753277453386,-882.33,0.00021095,2]
[374346313,1753277453395,-460.0,0.00021095,2]
[374346315,1753277453404,-3736.65,0.00021095,2]
[374346317,1753277453414,-385.8182389,0.00021095,2]
[374346319,1753277453423,-460.0,0.00021095,2]
[374346321,1753277453432,-473.03,0.00021095,2]
[374346322,1753277453441,-806.77,0.00021095,2]
[374346325,1753277453451,-585.2,0.00021095,2]
[374346327,1753277453465,-829.18,0.00021095,2]
[374346329,1753277453475,-530.39,0.00021095,2]
[374346331,1753277453484,-460.0,0.00021095,2]
[374346333,1753277453493,-780.73,0.00021095,2]
[374346335,1753277453502,-460.0,0.00021095,2]
[374346337,1753277453511,-581.53,0.00021095,2]
[374346339,1753277453520,-2000.0,0.00021116,2]
[374346340,1753277453529,-2000.0,0.00021116,2]
[374346343,1753277453540,-151.0,0.00021202,2]
[374346345,1753277453550,-151.0,0.00021202,2]
[374346347,1753277453559,-151.0,0.00021202,2]
[374346348,1753277453568,-151.0,0.00021202,2]
[374346351,1753277453578,-215.0738,0.00021202,2]
[374346352,1753277453587,-151.0,0.00021202,2]
[374346354,1753277453596,-500.0,0.00021202,2]
[374346357,1753277453606,-500.0,0.00021202,2]
[374346359,1753277453615,-151.0,0.00021202,2]
[374346360,1753277453624,-500.0,0.00021202,2]
[374346363,1753277453634,-151.0,0.00021202,2]
[374346364,1753277453644,-500.0,0.00021202,2]
[374346366,1753277453653,-151.0,0.00021202,2]
[374346368,1753277453663,-151.0,0.00021202,2]
[374346370,1753277453672,-500.0,0.00021202,2]
[374346372,1753277453681,-151.0,0.00021202,2]
[374346374,1753277453691,-151.0,0.00021202,2]
[374346376,1753277453701,-500.0,0.00021202,2]
[374346378,1753277453713,-151.0,0.00021202,2]
[374346380,1753277453722,-151.0,0.00021202,2]
[374346382,1753277453732,-500.0,0.00021202,2]
[374346384,1753277453742,-151.0,0.00021202,2]
[374346386,1753277453751,-500.0,0.00021202,2]
[374346388,1753277453761,-151.0,0.00021202,2]
[374346390,1753277453770,-151.0,0.00021202,2]
[374346392,1753277453780,-151.0,0.00021202,2]
[374346394,1753277453789,-500.0,0.00021202,2]
[374346396,1753277453798,-151.0,0.00021202,2]
[374346398,1753277453808,-500.0,0.00021202,2]
[374346400,1753277453817,-151.0,0.00021202,2]
[374346402,1753277453826,-151.0,0.00021202,2]
[374346404,1753277453836,-3801.642,0.00021202,2]
[374346406,1753277453846,-151.0,0.00021202,2]
[374346408,1753277453855,-500.0,0.00021202,2]
[374346410,1753277453864,-151.0,0.00021202,2]
[374346412,1753277453875,-500.0,0.00021202,2]
[374346414,1753277453885,-151.0,0.00021202,2]
[374346416,1753277453895,-151.0,0.00021202,2]
[374346418,1753277453904,-151.0,0.00021202,2]
[374346420,1753277453913,-500.0,0.00021202,2]
[374346422,1753277453923,-151.0,0.00021202,2]
[374346424,1753277453932,-151.0,0.00021202,2]
[374346426,1753277453942,-151.0,0.00021202,2]
[374346428,1753277453957,-500.0,0.00021202,2]
[374346431,1753277453974,-151.0,0.00021202,2]
[374346433,1753277453988,-151.0,0.00021202,2]
[374346436,1753277454000,-151.0,0.00021202,2]
[374346438,1753277454015,-500.0,0.00021202,2]
[374346441,1753277454031,-151.0,0.00021202,2]
[374346443,1753277454046,-151.0,0.00021202,2]
[374346446,1753277454059,-500.0,0.00021202,2]
[374346448,1753277454075,-151.0,0.00021202,2]
[374346451,1753277454088,-500.0,0.00021202,2]
[374346453,1753277454102,-151.0,0.00021202,2]
[374346456,1753277454115,-151.0,0.00021202,2]
[374346458,1753277454129,-151.0,0.00021202,2]
[374346461,1753277454143,-151.0,0.00021202,2]
[374346463,1753277454156,-151.0,0.00021202,2]
[374346465,1753277454168,-151.0,0.00021202,2]
[374346468,1753277454181,-151.0,0.00021202,2]
[374346470,1753277454196,-151.0,0.00021202,2]
[374346473,1753277454211,-151.0,0.00021202,2]
[374346475,1753277454226,-151.0,0.00021202,2]
[374346478,1753277454240,-151.0,0.00021202,2]
[374346481,1753277454256,-151.0,0.00021202,2]
[374346483,1753277454269,-151.0,0.00021202,2]
[374346485,1753277454283,-151.0,0.00021202,2]
[374346487,1753277454295,-151.0,0.00021202,2]
[374346490,1753277454311,-151.0,0.00021202,2]
[374346492,1753277454325,-151.0,0.00021202,2]
[374346495,1753277454337,-175.48396305,0.00021202,2]
[374346497,1753277454351,-151.0,0.00021202,2]
[374346499,1753277454366,-25000.0,0.00021202,2]
[374346501,1753277454377,-151.0,0.00021202,2]
[374346504,1753277454389,-151.0,0.00021202,2]
[374346506,1753277454401,-151.0,0.00021202,2]
[374346508,1753277454413,-151.0,0.00021202,2]
[374346510,1753277454424,-151.0,0.00021202,2]
[374346513,1753277454438,-7237.33451009,0.00021202,2]
[374346515,1753277454451,-151.0,0.00021202,2]
[374346517,1753277454465,-151.0,0.00021202,2]
[374346519,1753277454478,-151.0,0.00021202,2]
[374346522,1753277454489,-151.0,0.00021202,2]
[374346524,1753277454501,-151.0,0.00021202,2]
[374346526,1753277454513,-151.0,0.00021202,2]
[374346528,1753277454525,-151.0,0.00021202,2]
[374346531,1753277454537,-151.0,0.00021202,2]
[374346533,1753277454549,-151.0,0.00021202,2]
[374346535,1753277454561,-151.0,0.00021202,2]
[374346537,1753277454575,-151.0,0.00021202,2]
[374346539,1753277454592,-151.0,0.00021202,2]
[374346542,1753277454608,-704.297764,0.00021202,2]
[374346544,1753277454621,-704.297764,0.00021202,2]
[374346546,1753277454633,-3432.7107726,0.00021295,2]
[374346549,1753277454646,-460.0,0.00021369,2]
[374346551,1753277454658,-158.691522,0.00021369,2]
[374346553,1753277454671,-158.691522,0.00021369,2]
[374346555,1753277454683,-6058.28,0.00021369,2]
[374346557,1753277454695,-325.310964,0.00021369,2]
[374346560,1753277454707,-325.310964,0.00021369,2]